bitfinex/quotes_BTCUSD_20240821
["timestamp","ask_amount","ask_price","bid_price","bid_amount"]
[1724258270067,0.84002101,59806.0,59787.0,0.49229154]
[1724258270068,0.3384,59804.0,59778.0,0.0494617]
[1724258270259,0.26700299,59806.0,59787.0,0.49229154]
[1724258270260,0.1854,59792.0,59787.0,0.49229154]
[1724258270475,0.153,59794.0,59782.0,0.167273]
[1724258270476,0.1854,59785.0,59782.0,0.167273]
[1724258270927,0.1854,59785.0,59780.0,0.334557]
[1724258271136,0.1854,59785.0,59781.0,0.167275]
[1724258271558,0.1854,59785.0,59782.0,0.167274]
[1724258271761,0.1854,59785.0,59783.0,0.167269]
[1724258272804,0.1864,59785.0,59783.0,0.173269]
[1724258273029,0.001,59785.0,59784.0,1.00034498]
[1724258273244,0.02622617,59791.0,59790.0,0.501756]
[1724258273454,0.1854,59793.0,59791.0,0.334498]
[1724258273670,0.1854,59793.0,59792.0,0.501738]
[1724258273879,0.3454,59797.0,59794.0,0.167239]
[1724258274095,0.3454,59797.0,59792.0,0.34787592]
[1724258274096,0.1876,59797.0,59796.0,0.167235]
[1724258274534,0.1876,59797.0,59796.0,0.18060218]
[1724258274966,0.1876,59804.0,59796.0,0.33577016]
[1724258275209,0.1578,59808.0,59801.0,0.334438]
[1724258275451,0.1578,59808.0,59803.0,0.167214]
[1724258275658,0.1578,59808.0,59804.0,0.01333372]
[1724258276307,0.1578,59808.0,59801.0,0.16722]
[1724258276558,0.1578,59808.0,59805.0,0.01332954]
[1724258276796,0.1578,59808.0,59802.0,0.167218]
[1724258277015,0.1578,59808.0,59803.0,0.167215]
[1724258277236,0.1588,59808.0,59803.0,0.167215]
[1724258277448,0.1578,59808.0,59804.0,0.01333372]
[1724258277868,0.1628,59808.0,59804.0,0.01333372]
[1724258278106,0.1827,59807.0,59802.0,0.167217]
[1724258278311,0.1827,59807.0,59805.0,0.01332954]
[1724258278526,0.1827,59807.0,59802.0,0.167217]
[1724258278746,0.1827,59807.0,59801.0,0.167221]
[1724258278957,0.1827,59807.0,59802.0,0.167218]
[1724258279582,0.2914,59804.0,59802.0,0.167218]
[1724258279803,0.1829,59803.0,59802.0,0.167218]
[1724258280455,0.1829,59803.0,59801.0,0.1681252]
[1724258280682,0.1829,59803.0,59801.0,0.0009042]
[1724258280892,0.1829,59803.0,59802.0,0.002]
[1724258280893,0.3395,59803.0,59802.0,0.002]
[1724258281116,0.3482,59803.0,59801.0,0.0009042]
[1724258281550,0.3482,59803.0,59802.0,0.004]
[1724258282669,0.31762069,59804.0,59801.0,0.0059042]
[1724258282905,0.2914,59804.0,59801.0,0.0059042]
[1724258283164,0.2914,59804.0,59803.0,0.167215]
[1724258283631,0.2914,59804.0,59802.0,0.167217]
[1724258284031,0.2914,59804.0,59803.0,0.501646]
[1724258284265,0.2914,59804.0,59803.0,0.504646]
[1724258284468,0.000822,59808.0,59807.0,0.167204]
[1724258284683,0.000822,59808.0,59807.0,0.501613]
[1724258284924,0.000822,59808.0,59807.0,0.167204]
[1724258285151,0.000822,59808.0,59804.0,0.334424]
[1724258285369,0.000822,59808.0,59805.0,0.167209]
[1724258286018,0.000822,59808.0,59803.0,0.167214]
[1724258286247,0.2914,59804.0,59803.0,0.167214]
[1724258287358,0.2914,59804.0,59803.0,0.501645]
[1724258287625,0.2914,59804.0,59803.0,0.505645]
[1724258287831,0.2914,59804.0,59803.0,0.510645]
[1724258289971,0.2914,59804.0,59803.0,0.176214]
[1724258290186,1e-08,59804.0,59803.0,0.176214]
[1724258291112,1e-08,59804.0,59803.0,0.510645]
[1724258291367,1e-08,59804.0,59803.0,0.845076]
[1724258291992,1e-08,59804.0,59803.0,1.00907898]
[1724258293346,1e-08,59804.0,59803.0,1.0586693]
[1724258293585,1e-08,59804.0,59803.0,1.3931003]
[1724258293799,1e-08,59804.0,59803.0,1.99502222]
[1724258294031,1e-08,59804.0,59803.0,1.94156493]
[1724258294255,1e-08,59804.0,59803.0,2.01622006]
[1724258294480,1e-08,59804.0,59803.0,1.34350998]
[1724258294702,1e-08,59804.0,59803.0,0.510645]
[1724258294915,0.48240001,59804.0,59803.0,0.009]
[1724258296031,0.48240001,59804.0,59801.0,0.0009042]
[1724258296445,0.48240001,59804.0,59803.0,0.002]
[1724258296882,0.48240001,59804.0,59801.0,0.0009042]
[1724258297543,0.48199751,59804.0,59801.0,0.0009042]
[1724258297773,0.48199751,59804.0,59801.0,0.05077486]
[1724258298239,0.48199751,59804.0,59802.0,0.07987066]
[1724258298463,0.48199751,59804.0,59802.0,0.03]
[1724258299989,0.000822,59806.0,59802.0,0.07988]
[1724258300199,0.000822,59806.0,59805.0,0.04987715]
[1724258300838,0.000822,59806.0,59804.0,0.04987435]
[1724258302140,0.000822,59806.0,59802.0,0.031]
[1724258302381,0.000822,59806.0,59804.0,0.04987122]
[1724258302619,0.000822,59806.0,59805.0,0.05087122]
[1724258303034,0.000822,59806.0,59805.0,0.04987122]
[1724258303452,0.000822,59806.0,59805.0,0.6128789]
[1724258303919,0.000822,59806.0,59805.0,0.24401684]
[1724258304339,0.000822,59806.0,59805.0,0.24201684]
[1724258304788,0.000822,59806.0,59805.0,0.24401684]
[1724258305004,0.000822,59806.0,59805.0,0.54007035]
[1724258305223,0.000822,59806.0,59805.0,0.9742328]
[1724258305649,0.000822,59806.0,59805.0,0.9762328]
[1724258305857,0.000822,59806.0,59805.0,0.9742328]
[1724258306084,0.000822,59806.0,59805.0,0.9752328]
[1724258306536,0.000822,59806.0,59805.0,0.9782328]
[1724258306975,0.000822,59806.0,59805.0,1.31265575]
[1724258307206,0.000822,59806.0,59805.0,1.90012335]
[1724258307465,0.000822,59808.0,59807.0,0.836022]
[1724258307686,0.000822,59808.0,59807.0,1.54128137]
[1724258307895,0.000822,59808.0,59807.0,2.06368435]
[1724258308327,0.000822,59808.0,59807.0,2.21331743]
[1724258308539,0.000822,59808.0,59807.0,2.21326478]
[1724258309036,0.000822,59808.0,59807.0,2.06468435]
[1724258309240,0.000822,59808.0,59807.0,2.06368435]
[1724258309447,0.000822,59808.0,59807.0,2.06468435]
[1724258309670,0.000822,59808.0,59807.0,2.07868435]
[1724258309907,0.000822,59808.0,59807.0,2.22726478]
[1724258310349,0.000822,59808.0,59807.0,2.24126478]
[1724258313177,0.000822,59808.0,59807.0,2.09168435]
[1724258315231,0.000822,59808.0,59807.0,2.10715973]
[1724258316095,0.00822,59817.0,59814.0,0.835922]
[1724258316327,0.00822,59817.0,59814.0,2.06192805]
[1724258316555,0.00822,59817.0,59814.0,2.51273898]
[1724258316792,0.00822,59817.0,59814.0,2.51173898]
[1724258317010,0.00822,59817.0,59814.0,2.51473898]
[1724258317240,0.00822,59817.0,59814.0,3.26854634]
[1724258317455,0.00822,59817.0,59816.0,1.170253]
[1724258317685,0.00822,59817.0,59816.0,1.99969005]
[1724258317893,0.00822,59817.0,59816.0,2.17952242]
[1724258318315,0.00822,59817.0,59816.0,2.17852242]
[1724258318512,0.00822,59817.0,59816.0,2.18152242]
[1724258318726,0.00822,59817.0,59816.0,2.17852242]
[1724258318978,0.00822,59817.0,59816.0,2.51388042]
[1724258319621,0.00822,59817.0,59816.0,2.51288042]
[1724258320071,0.00822,59817.0,59816.0,2.54088042]
[1724258320311,0.00822,59817.0,59816.0,2.52688042]
[1724258320549,0.00822,59817.0,59816.0,2.88023842]
[1724258320832,0.00822,59817.0,59816.0,3.10087197]
[1724258321026,0.00822,59817.0,59816.0,2.88023842]
[1724258321894,0.00822,59817.0,59816.0,2.86623842]
[1724258322099,0.00822,59817.0,59816.0,3.08667216]
[1724258322311,0.00822,59817.0,59816.0,3.10067216]
[1724258322526,1e-08,59828.0,59827.0,1.170039]
[1724258322744,1e-08,59828.0,59827.0,2.18464811]
[1724258323203,1e-08,59828.0,59827.0,2.08515588]
[1724258323418,1e-08,59828.0,59827.0,2.18461827]
[1724258323626,1e-08,59828.0,59827.0,2.19861827]
[1724258324071,0.1665,59838.0,59831.0,0.835685]
[1724258324303,0.1665,59838.0,59831.0,0.88541595]
[1724258324519,0.1665,59838.0,59831.0,0.85104572]
[1724258325843,0.1665,59838.0,59831.0,0.86304572]
[1724258326540,0.1665,59838.0,59831.0,0.87504572]
[1724258327409,0.2914,59837.0,59831.0,0.86304572]
[1724258328118,0.2914,59837.0,59831.0,0.85104572]
[1724258328360,0.2914,59837.0,59831.0,0.86304572]
[1724258328582,0.3763,59832.0,59831.0,0.02736072]
[1724258329072,0.3763,59832.0,59831.0,0.0245401]
[1724258329348,0.3763,59832.0,59831.0,0.013]
[1724258329587,0.3763,59832.0,59831.0,0.026]
[1724258329828,0.877703,59832.0,59831.0,0.013]
[1724258330060,0.16,59830.0,59820.0,0.167167]
[1724258330250,0.2914,59825.0,59820.0,0.167167]
[1724258330540,0.2914,59825.0,59818.0,0.334343]
[1724258330541,0.357,59824.0,59818.0,0.167173]
[1724258330748,0.357,59824.0,59815.0,0.334358]
[1724258330749,0.197,59823.0,59817.0,0.167176]
[1724258330945,0.197,59823.0,59818.0,0.167172]
[1724258331434,0.197,59823.0,59816.0,0.501531]
[1724258331661,0.197,59823.0,59817.0,0.167174]
[1724258332138,0.197,59823.0,59818.0,0.007]
[1724258332612,0.197,59823.0,59813.0,0.334374]
[1724258332613,0.197,59823.0,59815.0,0.167181]
[1724258332857,0.197,59823.0,59819.0,0.01371049]
[1724258333089,0.16,59824.0,59816.0,0.008]
[1724258333323,0.2914,59825.0,59816.0,0.008]
[1724258333324,0.2914,59817.0,59816.0,0.007]
[1724258333540,0.6401,59817.0,59816.0,0.007]
[1724258334198,0.6663149,59817.0,59816.0,0.007]
[1724258335068,0.6663149,59817.0,59810.0,0.167194]
[1724258335300,0.6663149,59817.0,59808.0,0.167199]
[1724258335541,0.6663149,59817.0,59815.0,0.007]
[1724258335770,0.6663149,59817.0,59808.0,0.167199]
[1724258336012,0.3186149,59817.0,59806.0,0.0009042]
[1724258336247,0.3186149,59817.0,59806.0,0.1681102]
[1724258336248,0.1914,59809.0,59806.0,0.1681102]
[1724258336701,0.1914,59809.0,59806.0,0.0009042]
[1724258336953,0.1914,59809.0,59806.0,0.1681102]
[1724258337229,0.02621659,59815.0,59807.0,0.52160298]
[1724258337459,0.001,59817.0,59816.0,0.167179]
[1724258337686,0.001,59817.0,59816.0,0.369879]
[1724258338400,0.002,59817.0,59816.0,0.704237]
[1724258338639,0.2055,59825.0,59817.0,0.167176]
[1724258339111,0.2055,59825.0,59816.0,0.339358]
[1724258339630,0.2055,59825.0,59818.0,0.167173]
[1724258339873,0.2055,59825.0,59820.0,0.334336]
[1724258340092,0.2065,59825.0,59820.0,0.167167]
[1724258340328,0.2065,59825.0,59818.0,0.334344]
[1724258340593,0.2065,59825.0,59820.0,0.167167]
[1724258340857,0.2065,59825.0,59819.0,0.33434]
[1724258341094,0.2065,59825.0,59822.0,0.167161]
[1724258341593,0.2065,59825.0,59818.0,0.04975509]
[1724258341594,0.001,59825.0,59824.0,0.167156]
[1724258341842,0.002,59825.0,59824.0,0.167156]
[1724258342075,0.1922,59828.0,59825.0,0.167152]
[1724258343051,0.1922,59828.0,59825.0,0.334307]
[1724258343344,0.1922,59828.0,59826.0,0.16715]
[1724258343823,0.1922,59828.0,59827.0,0.501445]
[1724258344040,0.02621107,59829.0,59828.0,0.167145]
[1724258344266,0.02621107,59829.0,59828.0,0.501436]
[1724258344507,0.2914,59831.0,59829.0,0.167141]
[1724258344754,0.2914,59831.0,59830.0,0.16714]
[1724258344989,0.001322,59832.0,59831.0,0.334274]
[1724258345221,0.001322,59832.0,59831.0,0.835685]
[1724258346161,0.001322,59832.0,59831.0,0.501411]
[1724258346592,0.191122,59832.0,59831.0,0.501411]
[1724258346813,0.191122,59832.0,59831.0,0.509411]
[1724258347040,0.191122,59832.0,59831.0,0.008]
[1724258347359,0.343422,59832.0,59831.0,0.008]
[1724258347557,0.3696305,59832.0,59831.0,0.008]
[1724258347998,0.3696305,59832.0,59831.0,0.016]
[1724258348448,0.3696305,59832.0,59825.0,0.167153]
[1724258348667,0.3696305,59832.0,59831.0,0.006]
[1724258348882,0.6610305,59832.0,59831.0,0.006]
[1724258349325,0.6610305,59832.0,59825.0,0.167153]
[1724258349468,0.6610305,59832.0,59826.0,0.167149]
[1724258349689,0.6610305,59832.0,59827.0,0.167147]
[1724258349933,0.5087305,59832.0,59826.0,0.334299]
[1724258350157,0.5087305,59832.0,59828.0,0.167143]
[1724258350359,0.5087305,59832.0,59829.0,0.167142]
[1724258350956,0.5087305,59832.0,59828.0,0.167145]
[1724258351216,0.5087305,59832.0,59829.0,0.167142]
[1724258351444,0.5087305,59832.0,59831.0,0.003]
[1724258352118,0.5087305,59832.0,59829.0,0.170142]
[1724258352350,0.001322,59832.0,59831.0,0.167137]
[1724258352582,0.001322,59832.0,59831.0,0.501411]
[1724258352798,0.001322,59832.0,59831.0,0.835685]
[1724258353271,0.001322,59832.0,59831.0,0.841685]
[1724258353978,0.001322,59832.0,59831.0,0.173137]
[1724258354922,0.001322,59832.0,59831.0,0.006]
[1724258355809,0.001322,59832.0,59831.0,0.003]
[1724258356034,0.001322,59832.0,59829.0,0.167141]
[1724258356275,0.001322,59832.0,59831.0,0.003]
[1724258356504,0.001322,59832.0,59831.0,0.007]
[1724258356726,0.001322,59832.0,59831.0,0.004]
[1724258357915,0.001322,59832.0,59831.0,0.008]
[1724258365000,0.354622,59832.0,59831.0,0.008]
[1724258366224,0.354622,59832.0,59831.0,0.004]
[1724258366729,0.354622,59832.0,59825.0,0.04986962]
[1724258366993,0.2914,59826.0,59825.0,0.04986962]
[1724258367259,0.2914,59826.0,59824.0,0.04986962]
[1724258367702,0.3728,59825.0,59824.0,0.04986962]
[1724258368169,0.62570991,59825.0,59820.0,0.05077382]
[1724258368410,0.167157,59824.0,59820.0,0.05077382]
[1724258370668,0.167157,59824.0,59820.0,0.0069042]
[1724258371337,0.167157,59824.0,59820.0,0.0139042]
[1724258371557,0.167157,59824.0,59820.0,0.0069042]
[1724258372235,0.3728,59825.0,59820.0,0.0069042]
[1724258372476,0.3728,59825.0,59820.0,0.0129042]
[1724258373245,0.3728,59825.0,59820.0,0.0069042]
[1724258373246,0.167157,59824.0,59820.0,0.0069042]
[1724258374195,0.167157,59824.0,59820.0,0.0009042]
[1724258374438,0.3728,59825.0,59820.0,0.0059042]
[1724258374665,0.167158,59824.0,59820.0,0.0109042]
[1724258374896,0.167158,59824.0,59820.0,0.0009042]
[1724258375138,0.167158,59824.0,59820.0,0.0069042]
[1724258375884,0.167158,59824.0,59820.0,0.0119042]
[1724258376102,0.167158,59824.0,59820.0,0.0069042]
[1724258376319,0.167158,59824.0,59820.0,0.0129042]
[1724258376775,0.16716,59823.0,59820.0,0.0129042]
[1724258377032,0.704295,59821.0,59820.0,0.0129042]
[1724258377283,1.205525,59821.0,59820.0,0.0129042]
[1724258377517,1.227525,59821.0,59820.0,0.0129042]
[1724258377744,1.227525,59821.0,59820.0,0.0069042]
[1724258378232,1.227525,59821.0,59820.0,0.0009042]
[1724258378467,1.39152798,59821.0,59820.0,0.0009042]
[1724258378914,1.39152798,59821.0,59820.0,0.0019042]
[1724258379141,1.39152798,59821.0,59820.0,0.0029042]
[1724258380044,0.334318,59824.0,59820.0,0.0029042]
[1724258380045,0.2042,59824.0,59820.0,0.0029042]
[1724258380268,0.371357,59824.0,59820.0,0.0029042]
[1724258380515,0.2042,59824.0,59820.0,0.00206848]
[1724258380745,0.205022,59824.0,59820.0,0.00206848]
[1724258380995,0.000822,59824.0,59820.0,0.00106848]
[1724258381686,0.000822,59824.0,59820.0,6.848e-05]
[1724258381917,0.000822,59824.0,59821.0,0.334329]
[1724258382163,0.000822,59824.0,59822.0,0.362561]
[1724258382405,0.000822,59824.0,59823.0,0.20779965]
[1724258382654,0.000822,59824.0,59823.0,0.1579]
[1724258383100,0.00041962,59824.0,59823.0,0.1579]
[1724258383334,0.00041962,59824.0,59823.0,0.23274948]
[1724258383559,0.00041962,59824.0,59823.0,0.60350345]
[1724258384017,0.00041962,59824.0,59823.0,1.03013197]
[1724258384484,0.00041962,59824.0,59823.0,1.03513197]
[1724258384726,0.00041962,59824.0,59823.0,1.04013197]
[1724258384963,0.00041962,59824.0,59823.0,1.03012785]
[1724258385195,0.00041962,59824.0,59823.0,1.03812785]
[1724258385430,0.00041962,59824.0,59823.0,1.04612785]
[1724258386376,0.00041962,59824.0,59823.0,0.71180885]
[1724258386601,0.00041962,59824.0,59823.0,0.55390885]
[1724258386851,0.00041962,59824.0,59823.0,0.016]
[1724258387112,0.00041962,59824.0,59823.0,0.06590799]
[1724258387410,0.00041962,59824.0,59823.0,0.016]
[1724258387645,0.00041962,59824.0,59823.0,0.008]
[1724258388127,0.00041962,59824.0,59823.0,0.016]
[1724258388605,0.00041962,59824.0,59823.0,0.06590799]
[1724258388837,0.00041962,59824.0,59823.0,0.42810799]
[1724258389098,0.00041962,59824.0,59823.0,0.3782]
[1724258389320,0.00041962,59824.0,59823.0,0.62022098]
[1724258389557,0.00041962,59824.0,59823.0,0.62022589]
[1724258390040,0.00041962,59824.0,59823.0,0.9909848]
[1724258390488,0.00041962,59824.0,59823.0,1.3253038]
[1724258390722,0.00041962,59824.0,59823.0,0.4616258]
[1724258390954,0.21061962,59824.0,59823.0,0.09086689]
[1724258391242,0.00041962,59824.0,59823.0,0.09086689]
[1724258392378,0.00041962,59824.0,59823.0,0.46162929]
[1724258392817,0.00041962,59824.0,59823.0,0.46253349]
[1724258394498,0.16757562,59824.0,59823.0,0.0169042]
[1724258395430,0.00041962,59824.0,59823.0,0.0169042]
[1724258396160,0.16757562,59824.0,59823.0,0.0169042]
[1724258396674,0.72768862,59824.0,59823.0,0.0169042]
[1724258397371,1.3798046,59824.0,59823.0,0.0169042]
[1724258397627,1.87809638,59824.0,59823.0,0.0169042]
[1724258397877,1.87809638,59824.0,59820.0,6.848e-05]
[1724258397878,1.127225,59821.0,59820.0,6.848e-05]
[1724258398125,1.98925798,59821.0,59820.0,6.848e-05]
[1724258398636,2.03847434,59821.0,59820.0,6.848e-05]
[1724258398890,0.2914,59807.0,59806.0,0.07577109]
[1724258399133,0.2914,59807.0,59806.0,0.0009042]
[1724258399388,0.2914,59807.0,59806.0,0.05084455]
[1724258400350,0.2914,59807.0,59806.0,0.05084315]
[1724258400597,0.2914,59807.0,59806.0,0.0009042]
[1724258400833,0.2914,59813.0,59808.0,0.167201]
[1724258401077,0.2914,59813.0,59809.0,0.04992394]
[1724258402253,0.2914,59813.0,59809.0,0.04990884]
[1724258402506,0.2914,59819.0,59813.0,0.1599]
[1724258402799,0.03406182,59818.0,59813.0,0.2097956]
[1724258403061,0.2914,59819.0,59813.0,0.2097956]
[1724258403062,0.2914,59819.0,59816.0,0.0498956]
[1724258403559,0.2914,59819.0,59815.0,0.07486326]
[1724258403560,0.2914,59819.0,59817.0,0.0498956]
[1724258403816,0.32054,59819.0,59816.0,0.0498956]
[1724258404271,0.32054,59819.0,59815.0,0.0498956]
[1724258404272,0.004,59818.0,59815.0,0.0498956]
[1724258404989,0.004,59818.0,59814.0,0.0498956]
[1724258405240,0.05712138,59818.0,59816.0,0.001]
[1724258405477,0.05312138,59818.0,59816.0,0.001]
[1724258406189,0.05312138,59818.0,59814.0,0.0498956]
[1724258406421,0.07475032,59817.0,59814.0,0.0498956]
[1724258407371,0.07475032,59817.0,59815.0,0.0498956]
[1724258408507,0.07675032,59817.0,59815.0,0.0498956]
[1724258409001,0.07675032,59817.0,59814.0,0.0498956]
[1724258409247,0.002,59817.0,59814.0,0.0498956]
[1724258409486,0.002,59817.0,59813.0,0.0498956]
[1724258409709,0.002,59817.0,59814.0,0.0498956]
[1724258409939,0.004,59817.0,59814.0,0.0498956]
[1724258410195,0.004,59817.0,59811.0,0.0498956]
[1724258410196,0.41924116,59816.0,59811.0,0.0498956]
[1724258410429,0.41924116,59816.0,59810.0,0.07486326]
[1724258410430,0.45859,59812.0,59810.0,0.0498956]
[1724258410689,0.167193,59811.0,59809.0,0.0498956]
[1724258410943,0.167193,59811.0,59808.0,0.0498956]
[1724258411169,0.365898,59809.0,59808.0,0.0498956]
[1724258411400,0.365898,59809.0,59806.0,0.0009042]
[1724258411401,0.167202,59808.0,59806.0,0.0009042]
[1724258411641,0.167204,59807.0,59806.0,0.0009042]
[1724258411934,0.524613,59807.0,59806.0,0.0009042]
[1724258412903,0.190204,59807.0,59806.0,0.0009042]
[1724258413385,0.023,59807.0,59806.0,0.0009042]
[1724258413635,0.002,59807.0,59806.0,0.1662042]
[1724258413886,0.002,59807.0,59806.0,0.38337687]
[1724258414147,0.004,59807.0,59806.0,1.32700683]
[1724258414416,0.004,59807.0,59806.0,1.32696996]
[1724258414637,0.002,59807.0,59806.0,1.25205833]
[1724258414892,0.004,59807.0,59806.0,1.25205833]
[1724258415138,0.2914,59814.0,59807.0,0.167203]
[1724258415381,0.2914,59814.0,59808.0,0.04993918]
[1724258415618,0.02621789,59812.0,59808.0,0.01375648]
[1724258416086,0.02621789,59812.0,59807.0,0.21714218]
[1724258416314,0.02621789,59812.0,59809.0,0.0137523]
[1724258416556,0.02621789,59812.0,59807.0,0.21714218]
[1724258416775,0.02621789,59812.0,59810.0,0.01374812]
[1724258417054,0.02621789,59812.0,59809.0,0.0009042]
[1724258417296,0.02621789,59812.0,59811.0,0.01374394]
[1724258417777,0.02621789,59812.0,59809.0,0.0009042]
[1724258418013,0.02621789,59812.0,59811.0,0.01559082]
[1724258418339,0.167193,59811.0,59810.0,0.01559559]
[1724258418529,0.167193,59811.0,59807.0,0.001]
[1724258418530,0.167201,59808.0,59807.0,0.001]
[1724258418760,0.167201,59808.0,59803.0,0.0009042]
[1724258418761,0.4978,59806.0,59803.0,0.0009042]
[1724258418999,0.836062,59804.0,59803.0,0.0009042]
[1724258419240,0.66563998,59804.0,59803.0,0.0009042]
[1724258419467,0.68863998,59804.0,59803.0,0.0009042]
[1724258421786,0.68863998,59804.0,59803.0,0.0019042]
[1724258422494,0.68863998,59804.0,59803.0,0.0029042]
[1724258422724,0.2914,59806.0,59803.0,0.0029042]
[1724258423442,0.2914,59806.0,59804.0,0.18237198]
[1724258424393,0.2924,59806.0,59804.0,0.18237198]
[1724258424620,0.2914,59806.0,59804.0,0.01515998]
[1724258425144,0.2924,59806.0,59804.0,0.01515998]
[1724258425379,0.2924,59806.0,59804.0,0.18237198]
[1724258425380,0.2934,59806.0,59804.0,0.18237198]
[1724258425881,0.2924,59806.0,59804.0,0.18237198]
[1724258426127,0.2934,59806.0,59804.0,0.01515998]
[1724258426587,0.2924,59806.0,59804.0,0.01515998]
[1724258426839,0.02934,59805.0,59804.0,0.01515998]
[1724258428031,0.2934,59806.0,59804.0,0.01515998]
[1724258428266,0.2924,59806.0,59804.0,0.01515998]
[1724258428498,0.501637,59804.0,59803.0,0.0009042]
[1724258428956,0.2914,59793.0,59792.0,0.20899258]
[1724258429413,0.2914,59793.0,59792.0,0.22420993]
[1724258429638,0.2914,59793.0,59792.0,0.05696493]
[1724258429876,0.2914,59799.0,59792.0,0.22421093]
[1724258430097,0.2914,59799.0,59792.0,0.05696493]
[1724258430347,0.2914,59799.0,59792.0,0.22420893]
[1724258431060,0.001,59793.0,59792.0,0.23820893]
[1724258431323,0.001,59793.0,59792.0,0.05696493]
[1724258431783,0.002,59793.0,59792.0,0.06996493]
[1724258432048,0.002,59793.0,59792.0,0.06579802]
[1724258432304,0.001,59793.0,59792.0,0.22004402]
[1724258432816,0.001,59793.0,59792.0,0.22504402]
[1724258433052,0.2914,59799.0,59793.0,0.167242]
[1724258433510,0.2914,59799.0,59792.0,0.05779802]
[1724258433511,0.2914,59799.0,59794.0,0.01104479]
[1724258433760,0.2914,59799.0,59793.0,0.167243]
[1724258433985,0.2914,59799.0,59795.0,0.01104197]
[1724258434212,0.2914,59799.0,59794.0,0.01104479]
[1724258434437,0.2914,59799.0,59796.0,0.01103914]
[1724258434692,0.2914,59799.0,59792.0,0.07490656]
[1724258434693,0.2934,59799.0,59795.0,0.01104197]
[1724258434926,0.2934,59799.0,59797.0,0.01103632]
[1724258435147,0.2954,59799.0,59797.0,0.01103632]
[1724258435606,0.2974,59799.0,59797.0,0.01103632]
[1724258435880,0.2974,59799.0,59798.0,1.046247]
[1724258435881,0.006,59799.0,59798.0,1.046247]
[1724258436118,0.004,59799.0,59798.0,1.21888049]
[1724258436352,0.2914,59806.0,59800.0,0.334445]
[1724258436592,0.2914,59806.0,59802.0,0.167215]
[1724258436817,0.2914,59806.0,59803.0,0.167214]
[1724258437628,0.3569,59805.0,59799.0,0.07481405]
[1724258437853,0.2914,59800.0,59798.0,0.01103349]
[1724258438324,0.2914,59800.0,59798.0,0.005]
[1724258438789,0.2914,59800.0,59794.0,0.16724]
[1724258439013,0.2934,59800.0,59794.0,0.04991775]
[1724258439231,0.2934,59800.0,59795.0,0.04991775]
[1724258439469,0.2934,59800.0,59795.0,0.04992703]
[1724258439730,0.2914,59800.0,59797.0,0.1547]
[1724258440209,0.2934,59800.0,59798.0,0.01118002]
[1724258440457,0.2914,59800.0,59798.0,0.01118002]
[1724258440681,0.2934,59800.0,59798.0,0.17840902]
[1724258440914,0.2914,59800.0,59798.0,0.01118002]
[1724258441157,0.2934,59800.0,59798.0,0.01118002]
[1724258441397,0.2934,59800.0,59799.0,0.04992703]
[1724258441641,0.2914,59800.0,59799.0,0.07489055]
[1724258441873,0.2914,59800.0,59799.0,0.06111645]
[1724258442137,0.2914,59800.0,59799.0,0.0111772]
[1724258442392,0.2914,59800.0,59799.0,0.1784032]
[1724258442628,0.2914,59800.0,59799.0,0.1814032]
[1724258443307,0.2914,59800.0,59799.0,0.23134245]
[1724258443579,0.2914,59800.0,59799.0,0.23434245]
[1724258444040,0.2914,59800.0,59799.0,0.06711645]
[1724258445266,0.31762139,59800.0,59799.0,0.0671303]
[1724258445497,0.31762139,59800.0,59799.0,0.0171772]
[1724258446162,0.31762139,59800.0,59799.0,0.0141772]
[1724258446896,0.48484539,59800.0,59799.0,0.0141772]
[1724258447118,0.48484539,59800.0,59797.0,0.0499531]
[1724258447365,0.48484539,59800.0,59799.0,0.0111772]
[1724258447593,0.48484539,59800.0,59795.0,0.07489055]
[1724258447594,0.48684539,59800.0,59798.0,0.01118002]
[1724258447970,0.48584539,59800.0,59796.0,0.0499531]
[1724258447974,0.48484539,59800.0,59799.0,0.0111772]
[1724258448173,0.68194539,59800.0,59799.0,0.0111772]
[1724258448407,0.67894539,59800.0,59796.0,0.0499531]
[1724258448930,0.67894539,59800.0,59797.0,0.01118285]
[1724258449574,0.68194539,59800.0,59797.0,0.01118285]
[1724258449795,0.167227,59799.0,59797.0,0.01118285]
[1724258450232,0.836147,59798.0,59797.0,0.06114288]
[1724258450485,1.02314998,59798.0,59797.0,0.01118285]
[1724258450709,1.02314998,59798.0,59793.0,0.0009053]
[1724258450710,0.501721,59794.0,59793.0,0.0009053]
[1724258450934,1.481102,59794.0,59793.0,0.0009053]
[1724258451179,1.504102,59794.0,59793.0,0.0009053]
[1724258451393,1.19584749,59794.0,59793.0,0.0009053]
[1724258451630,1.19584749,59794.0,59783.0,0.04996003]
[1724258451631,0.1948,59784.0,59783.0,0.04996003]
[1724258451886,0.1948,59784.0,59779.0,0.12490007]
[1724258451887,0.16728,59780.0,59779.0,0.04996003]
[1724258452090,0.16728,59780.0,59778.0,0.194]
[1724258452091,0.2914,59780.0,59778.0,0.194]
[1724258453870,0.2924,59780.0,59778.0,0.208]
[1724258454291,0.2924,59780.0,59778.0,0.014]
[1724258454722,0.460681,59780.0,59778.0,0.0259042]
[1724258455398,0.459681,59780.0,59778.0,0.0149042]
[1724258455669,0.167282,59779.0,59778.0,0.0169042]
[1724258455858,0.45968,59780.0,59778.0,0.0169042]
[1724258456109,0.45968,59780.0,59778.0,0.0029042]
[1724258456326,0.45868,59780.0,59778.0,0.0029042]
[1724258456556,0.167282,59779.0,59778.0,0.0049042]
[1724258457908,0.501847,59779.0,59778.0,0.0049042]
[1724258458128,0.501847,59779.0,59778.0,0.0009042]
[1724258458339,0.167282,59779.0,59778.0,0.0039042]
[1724258458551,0.501847,59779.0,59778.0,0.0039042]
[1724258458791,0.167282,59779.0,59778.0,0.0039042]
[1724258459443,0.501847,59779.0,59778.0,0.0039042]
[1724258459891,0.501847,59779.0,59778.0,0.0069042]
[1724258460788,0.167282,59779.0,59778.0,0.0069042]
[1724258461244,0.501847,59779.0,59778.0,0.0069042]
[1724258461693,0.167282,59779.0,59778.0,0.0069042]
[1724258463032,0.61724856,59779.0,59778.0,0.0069042]